Workbook

Sheet Pareto Chart Template
D15: Chart title
D16: Y Axis label
D17: X Axis Label
D19: Causes | E19: Frequency | F19: Cumulative Total | G19: Cumulative % | H19: 0.8
F20: =E20 -> 0 | G20: =IF($E$30<>0, F20/$E$30, "") ->  | H20: 0.8
F21: =SUM(E20:E21) -> 0 | G21: =IF($E$30<>0, F21/$E$30, "") ->  | H21: 0.8
F22: =SUM(E20:E22) -> 0 | H22: 0.8
F23: =SUM(E20:E23) -> 0 | H23: 0.8
F24: =SUM(E20:E24) -> 0 | H24: 0.8
F25: =SUM(E20:E25) -> 0 | H25: 0.8
F26: =SUM(E20:E26) -> 0 | H26: 0.8
F27: =SUM(E20:E27) -> 0 | H27: 0.8
F28: =SUM(E20:E28) -> 0 | H28: 0.8
F29: =SUM(E20:E29) -> 0 | H29: 0.8
D30: Total | E30: =SUM(E20:E29) -> 0

Sheet 80 20 Rule
Q29: Figure 1 Pareto chart example

Sheet Example
C16: Chart title | D16: Medication Errors
C17: Left y-axis label | D17: Frequency of medication errors
C18: Right y-axis label | D18: Cumulative percentage
C19: X-axis label | D19: Types of medication errors
C21: Causes | D21: Frequency | E21: Cumulative Total | F21: Cumulative % | G21: 0.8
C22: Dose missed | D22: 92 | E22: =D22 -> 92 | F22: =E22/$D$32 -> 0.2159624413 | G22: 0.8
C23: Wrong time | D23: 83 | E23: =SUM(D22:D23) -> 175 | F23: 0.4107981221 | G23: 0.8
C24: Wrong drug | D24: 76 | E24: =SUM(D22:D24) -> 251 | F24: 0.5892018779 | G24: 0.8
C25: Overdose | D25: 59 | E25: =SUM(D22:D25) -> 310 | F25: 0.7276995305 | G25: 0.8
C26: Wrong patient | D26: 53 | E26: =SUM(D22:D26) -> 363 | F26: 0.8521126761 | G26: 0.8
C27: Wrong route | D27: 27 | E27: =SUM(D22:D27) -> 390 | F27: 0.9154929577 | G27: 0.8
C28: Wrong calculation | D28: 16 | E28: =SUM(D22:D28) -> 406 | F28: 0.9530516432 | G28: 0.8
C29: Duplicated drugs | D29: 9 | E29: =SUM(D22:D29) -> 415 | F29: 0.9741784038 | G29: 0.8
C30: Underdose | D30: 7 | E30: =SUM(D22:D30) -> 422 | F30: 0.9906103286 | G30: 0.8
C31: Wrong IV rate | D31: 4 | E31: =SUM(D22:D31) -> 426 | F31: 1 | G31: 0.8
C32: Total | D32: =SUM(D22:D31) -> 426
